{"text_format":"1","workbook":"xlsx","n_sheets":21,"sheets":["Cover Page","Contents","Facility Info","Operational Data","Operational Summary","Perf. Form 1","Energy Form 1","Permit Compliance","Improvements","Public Liasion","Residue Quality ","Water","Air (periodic)","Air (CEMS)","HCl","SO2","NOx","TOC","Particulates","CO 0.5hourly","NH3"],"not_rendered":{"charts":7,"images":0,"macros":1,"external_links":0,"defined_names":21,"comments":0,"pivot_tables":0},"unopened":[],"bounds":{"document_bytes":16777216,"sheet_cells":100000,"rows_first":2000,"rows_last":500,"rows_between":2000,"halvings":0,"cell_chars":16384,"cell_head_chars":4096},"cells_cut":0,"cells_raw":0,"read":"whole","date_system":"1900"}

{"sheet":"Cover Page","index":0,"n_rows":53,"n_cols":14,"rows_kept":53,"cut":false,"hidden":false,"merged":[[48,2,48,3],[48,6,48,8],[52,2,52,3],[36,1,36,8],[40,2,40,8],[42,2,42,4],[44,2,44,4],[46,2,46,3],[46,6,46,8],[13,13,18,15],[34,1,34,8],[0,3,5,6],[7,1,23,8],[28,1,28,8],[30,1,30,8],[32,1,32,8]]}
[null,null,null,"BIOMASS UK NO.3 LIMITED"]
[null,null,null,null,null,null,null,null,null,null,null,null,null,"Version 20.5 "]
[]
[]
[]
[]
[]
[null,"Add photo"]
[]
[]
[]
[]
[null,null,null,null,null,null,null,null,null,null,null,null,null,"Notes:"]
[null,null,null,null,null,null,null,null,null,null,null,null,null,"This template may require adjustments by individual operators to meet specific reporting requirements as defined in the site Permit(s)"]
[]
[]
[]
[]
[]
[]
[]
[]
[]
[]
[]
[]
[]
[]
[null,"Annual Performance Report 2022"]
[]
[null,"Permit EPR/UP3131DF"]
[]
[null,"Boston Energy Production Facility"]
[]
[null,"Biomass UK No 3"]
[]
[]
[]
[null,"Year:",2022]
[]
[null,"Address:","Riverside Industrial Estate, Marsh lane, Boston Lincolnshire PE21 7TN"]
[]
[null,"Tel: ",1179372811]
[]
[null,"Email: ","emily.hingston@sol-environment.co.uk"]
[]
[null,"Prepared by:","Emily Hingston",null,null,"Position:","Consultant"]
[]
[null,"Approved by:","Randall Smith",null,null,"Position:","Technical Manager"]
[]
[null,"Version:",1]
[]
[null,"Issue Date:","2023-01-31"]

{"sheet":"Contents","index":1,"n_rows":44,"n_cols":11,"rows_kept":44,"cut":false,"hidden":false,"merged":[[43,0,46,9],[36,1,36,6],[37,1,37,6],[38,1,38,6],[39,1,39,6],[40,1,40,6],[41,1,41,6],[35,1,35,6],[21,1,21,6],[22,1,22,6],[23,1,23,6],[26,1,26,6],[27,1,27,6],[28,1,28,6],[29,1,29,6],[30,1,30,6],[31,1,31,6],[34,1,34,6],[20,1,20,6],[9,1,9,6],[10,1,10,6],[11,1,11,6],[12,1,12,6],[13,1,13,6],[14,1,14,6],[15,1,15,6],[16,1,16,6],[17,1,17,6],[18,1,18,6],[19,1,19,6],[4,10,7,14],[8,1,8,6],[3,1,3,6],[4,1,4,6],[5,1,5,6],[6,1,6,6],[7,1,7,6]]}
[{"$f":"+'Cover Page'!$B$29","v":"Annual Performance Report 2022"},null,null,null,{"$f":"+'Cover Page'!$B$33","v":"Boston Energy Production Facility"}]
[]
["Contents",null,null,null,null,null,null,null,null,null,"Notes:"]
["Section","Subject",null,null,null,null,null,"Page ",null,null,"Section references and Page nos. to be inserted"]
[null,"Facility Information",null,null,null,null,null,null,null,null,"Sections and Subjects may require adjustment by individual operators to meet specific reporting requirements as defined in the sites Permit(s)"]
[null,"Operational Summary"]
[null,"Operational Data"]
[null,"Performance Form 1"]
[null,"Energy Form 1"]
[null,"Permit Compliance"]
[null,"Improvements"]
[null,"Public Liasion"]
[null,"Residue Quality - Optional"]
[null,"Emissions to Water"]
[null,"Emissions to Air (periodically monitored)"]
[null,"Emissions to Air (continuously monitored)"]
[null,"Hydrogen Chloride emissions"]
[null,"Sulphur Dioxdie emsissions"]
[null,"Oxides of Notrigen emissions"]
[null,"Total Organic Carbon emissions"]
[null,"Particulate Matter emissions"]
[null,"Carbon Monoxide emissions"]
[null,"Ammonia emissions"]
[]
[]
["Version Control"]
["Section","Information",null,null,null,null,null,"Date"]
[]
[]
[]
[]
[]
[]
["Distribution"]
["Copy","Name, Role",null,null,null,null,null,"No."]
[]
[]
[]
[]
[]
[]
[]
[]
["This report is required under the Industrial Emissions Directive’s Article 55(2) requirements on reporting and public information on waste incineration plants and co-incineration plants, which require the operator to produce an annual report on the functioning and monitoring of the plant and make it available to the public. "]

{"sheet":"Facility Info","index":2,"n_rows":22,"n_cols":11,"rows_kept":22,"cut":false,"hidden":false,"merged":[[4,0,17,8],[21,0,53,8],[4,10,13,13],[21,10,30,13]]}
[{"$f":"+'Cover Page'!$B$29","v":"Annual Performance Report 2022"},null,null,null,{"$f":"+'Cover Page'!$B$33","v":"Boston Energy Production Facility"}]
[]
["Plant Description and Design",null,null,null,null,null,null,null,null,null,"Notes:"]
[]
["The Boston Energy Production Facility is a renewable energy generation facility which has been designed to recover energy from pre-prepared mixed waste wood and RDF feedstocks using gasification. The gasification facility is an Advanced Thermal Treatment (ATT) process that will produce a combustible synthesis gas, which is then used to raise steam and generate electricity, through steam cycle turbine generation.\n\nThe Advanced Thermal Treatment (ATT) plant is designed to process shredded mixed waste wood feedstocks to produce heat to raise steam in a conventional tube boiler for utilisation in a steam turbine for the production of renewable electricity with an export capacity up to 11.7MWe.\n\nThe Installation has been designed to process approximately 86,400 tonnes of pre-processed non-hazardous mixed waste wood or RDF per annum.",null,null,null,null,null,null,null,null,null,"Include summary of plant design, design capacity, no. of combustion lines, electrical and heat capacity and any other general information that describes the facility, its location and purpose "]
[]
[]
[]
[]
[]
[]
[]
[]
[]
[]
[]
[]
[]
[]
["Summary of Operational Processes and Procedures"]
[]
["The principle components of the process comprise the following:\nWaste Acceptance and Reception: All waste wood or RDF is delivered directly into the fuel storage building via electrically operated roller shutter doors. Should both waste streams be accepted onsite at the same time, the piles will separated by concrete bay walls. When required, the waste is discharged onto the feedstock feed system, which delivers the waste into the gasification building. All waste is accepted in accordance to the sites waste acceptance procedures.\n\nGasification: The feedstock feed system delivers the waste into the fluidised bed gasification system where the waste is combusted to produce a synthetic gas (syngas). The syngas is then combusted to produce a high temperature flue-gas. A steam boiler then recovers the heat from the combustion gases through the conversion into superheated steam.\n\nElectricity Generation: The superheated steam then passes to a Steam Turbine and Generator, which will export 11.7MWe of renewable electricity onto the Local Distribution Network.\n\nFlue-Gas Cleaning: Flue gas cleaning and pollution control consists of urea injection for De-NOx, lime injection for acid gas neutralisation and activated carbon powder injection for absorption and removal of heavy metals, dioxins, VOCs and other harmful substances. The stream has a baghouse system, which is designed to have the capacity to remove submicron dust particles within anticipated emission limit values (ELV’s) stipulated by Chapter IV of the Industrial Emissions Directive (IED).\n\nThe plant is operated in accordance with its Environmental Management System which is designed to meet the requirements of ISO14001:2004.",null,null,null,null,null,null,null,null,null,"Include summary of key processes and procedures such as (but not limited to); waste reception, control rooms, grate, bed and boiler, energy & heat  generation, cooling systems, residue management, emission controls, health and safety systems, maintenance"]

{"sheet":"Operational Data","index":3,"n_rows":53,"n_cols":11,"rows_kept":53,"cut":false,"hidden":false,"merged":[[5,10,6,10],[7,10,15,10],[30,1,32,1],[27,2,27,5],[27,6,27,7],[3,1,3,2],[7,1,16,1],[20,1,23,1],[25,1,26,1]]}
[{"$f":"+'Cover Page'!$B$29","v":"Annual Performance Report 2022"},null,null,null,"Biomass UK No 3"]
[]
["Operational Data",null,null,null,null,null,null,null,null,null,"Notes:"]
["Plant Size",86400,null,"tonnes pa",null,"MWth",12,"MWe",null,null,"* - RDF to include SRF "]
["No. of combustion lines",1,null,"No. of Turbines:",null,1,null,null,null,null,"** - CHP plants only"]
[null,null,null,null,null,null,null,null,null,null,"2020 updates include;  heat in MWh, water in Litres, NCV in MJ/kg"]
["Waste types received","Unit","Q1","Q2","Q3","Q4","Year Total","%"]
["Household / Local Authority","tonnes",0,0,0,0,{"$f":"SUM(C8:F8)","v":0},{"$f":"IF(G8>0,G8/$G$15,\"-\")","v":"-"},null,null,"Availabiity Definition: 'the availability of a line is to be calculated by the number of hours the line reported Continuously Monitored emission levels to the Regulator through the calendar year divided by the total number of hours in that year. \nThe overall plant availability is calculated as the Mean of all lines in the plant. For clarity this includes periods of Other Than Normal Operating Conditions (OTNOC) and abnormal operation.'  \n\nRationale: The primary function of an Energy from Waste facility is the disposal of waste. It follows therefore that the availability of a plant is determined by the period of time a facility spends undertaking this activity."]
["Commercial & Industrial ",null,0,0,0,0,{"$f":"SUM(C9:F9)","v":0},"-"]
["Hazardous ",null,0,0,0,0,0,"-"]
["Clinical",null,0,0,0,0,0,"-"]
["Waste wood (biomass) ",null,10145,0,0,0,10145,0.46198726017191666]
["Refuse Derived Fuel * - H'hold/LA",null,0,0,6082.54,5731.94,{"$f":"SUM(C13:F13)","v":11814.48},0.5380127398280834]
["Refuse Derived Fuel *  - C&I",null,0,0,0,0,0,"-"]
["Total waste received",null,{"$f":"SUM(C8:C14)","v":10145},{"$f":"SUM(D8:D14)","v":0},{"$f":"SUM(E8:E14)","v":6082.54},5731.94,{"$f":"SUM(G8:G14)","v":21959.48},1]
["Rejected Waste ",null,0,0,0,0,{"$f":"SUM(C16:F16)","v":0},{"$f":"IF(G16>0,G16/$G$15,\"-\")","v":"-"}]
["Unprocessed waste transferred out",null,319.62,0,0,0,{"$f":"SUM(C17:F17)","v":319.62},{"$f":"IF(G17>0,G17/$G$15,\"-\")","v":1.4554989462409858E-2}]
["Total waste combusted",null,{"$f":"C15-SUM(C16:C17)","v":9825.3799999999992},{"$f":"D15-SUM(D16:D17)","v":0},6082.54,5731.94,{"$f":"SUM(C18:F18)","v":21639.859999999997},{"$f":"IF(G18>0,G18/$G$15,\"-\")","v":0.98544501053759004}]
[]
["Energy Useage / Export","Unit","Q1","Q2","Q3","Q4","Year Total","KWh/te"]
["Power Generated","MWh",8540,0,5542,5545,{"$f":"SUM(C21:F21)","v":19627},{"$f":"IF(G21>0,G21*1000/$G$18,\"-\")","v":906.98368658577283}]
["Power Exported",null,5366,0,4431,4332,{"$f":"SUM(C22:F22)","v":14129},{"$f":"IF(G22>0,G22*1000/$G$18,\"-\")","v":652.91549945332372}]
["Power Used on site",null,3765,0,1816,1918,{"$f":"SUM(C23:F23)","v":7499},{"$f":"IF(G23>0,G23*1000/$G$18,\"-\")","v":346.53643785126155}]
["Power Imported",null,603,376,673,705,2357,{"$f":"IF(G24>0,G24*1000/$G$18,\"-\")","v":108.91937378522783}]
["Parasitic Load","%",{"$f":"IF(C21>0,1-C22/(C21+C24),\"-\")","v":0.41310292026687079},{"$f":"IF(D21>0,1-D22/(D21+D24),\"-\")","v":"-"},{"$f":"IF(E21>0,1-E22/(E21+E24),\"-\")","v":0.2870474658085278},{"$f":"IF(F21>0,1-F22/(F21+F24),\"-\")","v":0.30688000000000004},{"$f":"IF(G21>0,1-G22/(G21+G24),\"-\")","v":0.35730531295487622}]
["Thermal Energy Produced **","MWh",null,null,null,null,{"$f":"SUM(C26:F26)","v":0},{"$f":"IF(G26>0,G26*1000/$G$18,\"-\")","v":"-"}]
["Thermal Energy Exported **",null,null,null,null,null,0,{"$f":"IF(G27>0,G27*1000/$G$18,\"-\")","v":"-"}]
["R1 value",null,null,null,null,null,"Design / Operational / n/a"]
[]
["Waste Disposal & Recovery","Unit","Q1","Q2","Q3","Q4","Year Total","% inputs"]
["APC Residues - produced","tonnes",113.8,0,363.56,599.41999999999996,{"$f":"SUM(C31:F31)","v":1076.78},{"$f":"IF(G31>0,G31/$G$15,\"-\")","v":4.9034858748932125E-2}]
["IBA - produced",null,395,0,608,185.58,1188.58,{"$f":"IF(G32>0,G32/$G$15,\"-\")","v":5.4126053986706425E-2}]
["Metals recycling",null,26.9,0,33.799999999999997,27.7,{"$f":"SUM(C33:F33)","v":88.399999999999991},{"$f":"IF(G33>0,G33/$G$15,\"-\")","v":4.0255962345192142E-3}]
[]
["Raw Material Usage","Unit","Q1","Q2","Q3","Q4","Year Total","kg or Ltr /te"]
["Mains Water","M3",9682,6131,10870,7241,{"$f":"SUM(C36:F36)","v":33924},{"$f":"IF(G36>0,G36/$G$15,\"-\")","v":1.5448453242062199}]
["Other Water","ltrs",0,0,0,0,0,{"$f":"IF(G37>0,G37/$G$15,\"-\")","v":"-"}]
["Ammonia","kgs",0,0,0,0,0,{"$f":"IF(G38>0,G38/$G$15,\"-\")","v":"-"}]
["Urea","kgs",16630,0,11850,2000,{"$f":"SUM(C39:F39)","v":30480},{"$f":"IF(G39>0,G39/$G$15,\"-\")","v":1.3880110093681635}]
["Activated Carbon","kgs",0,0,797,648,1445,{"$f":"IF(G40>0,G40/$G$15,\"-\")","v":6.58030153719487E-2}]
["Lime / hydrated lime","kgs",183000,null,113000,128000,424000,19.308289631630622]
["Fuel oil","ltrs",666113,0,893920,347423,1907456,86.862530442433069]
["Gas","cf",0,0,0,0,0]
[]
["Summary ","Line/Unit","Q1","Q2","Q3","Q4","Year Total",null,null,"Hrs in year "]
["Availability of waste combustion by line, hrs",{"$f":"+B5","v":1},932,0,585,574,{"$f":"SUM(C46:F46)","v":2091},{"$f":"(G46/J46)","v":0.23869863013698631},null,8760]
["Overall Availability, mean avg. of all lines, hrs",null,null,null,null,null,{"$f":"AVERAGE(G46)","v":2091},{"$f":"(G47/J46)","v":0.23869863013698631}]
["Hours of turbine operations, hrs",1,932,0,585,574,{"$f":"SUM(C48:F48)","v":2091},{"$f":"(G48/J46)","v":0.23869863013698631}]
["Hours of heat / steam export",null,null,null,null,null,0,{"$f":"IF(B49>0,#REF!/J46,\"n/a\")","v":"n/a"}]
["Net Calorific Value of waste","MJ/kg",14,"-",17.399999999999999,13.7,null,"-"]
["Abnormal Events","qty.",0,0,0,0,0,{"$f":"IF(G51>0,\"yes\",\"no\")","v":"no"}]
["Abnormal operation","hours",0,0,0,0,0,{"$f":"+(G52)/J46","v":0}]
["Permit Breaches","qty.",0,0,4,0,4,{"$f":"IF(G53>0,\"yes\",\"no\")","v":"yes"}]

{"sheet":"Operational Summary","index":4,"n_rows":31,"n_cols":11,"rows_kept":31,"cut":false,"hidden":false,"merged":[[4,0,26,8],[30,0,51,8],[4,10,13,13],[30,10,39,13]]}
[{"$f":"+'Cover Page'!$B$29","v":"Annual Performance Report 2022"},null,null,null,"Biomass UK No 3"]
[]
["Summary of Plant Operations and Maintenance during the reporting year",null,null,null,null,null,null,null,null,null,"Notes:"]
[]
["The plant began the year running on wood fuel, operating until a planned upgrade shut down in April. During this shut down which lasted for all of Q2 an upgrade was carried out on the fuel feed system to the gasifier.                                                                                                                   This comprised of considerable upgrades to the metering bins and feed screws, which also required some structural modifications to accommodate the new larger equipment.                                                                         \n\nThe plant returned to service in July using RDF as a fuel, after trialling the RDF the fuel was then switched to SRF and remained on this fuel for the rest of the year and will continue to run on this fuel. The plant ran for 3 weeks at a time to allow for internal inspections to assess the status of the gasifier and boiler, both required significant cleaning and de-slagging.                                                                                 \n\nDuring the  latter stages of Q3 and most of Q4 the plant has run intermittently with regular shut downs required for cleaning and de-slagging. Engineers continuing to make adjustments to the software and some hardware changes to improve the availability of the plant.          \n\nThere will be further adjustments and modifications ongoing into 2023 to improve plant reliability and availability.",null,null,null,null,null,null,null,null,null,"Include summary of key operational and/or maintenance activity undertaken in the year, such as any major component upgrades and/or replacements "]
[]
[]
[]
[]
[]
[]
[]
[]
[]
[]
[]
[]
[]
[]
[]
[]
[]
[]
[]
[]
[]
[]
[]
["Summary of Residue Handling for the reporting year"]
[]
["Fuel sampling was carried out daily during the initial month of fuel change from wood to RDF. This was reduced to weekly sampling during Q4. \n\nMonthly sampling of IBA and APCR commenced in July in line with Schedule 4 of the Environmental Permit. \n\nIBA and APCR is handled by a broker N+P, and taken to the Augean site in Peterborough.",null,null,null,null,null,null,null,null,null,"Include in here a summary of residue handling regimes and destinations "]

{"sheet":"Perf. Form 1","index":5,"n_rows":54,"n_cols":10,"rows_kept":54,"cut":false,"hidden":false,"merged":[[47,0,47,1],[49,0,49,9],[50,0,51,9],[38,0,38,9],[39,0,40,9],[43,0,43,1],[43,2,43,9],[45,0,45,1],[46,0,46,1],[36,0,36,3],[36,4,36,5],[36,7,36,8],[37,0,37,3],[37,4,37,5],[37,7,37,8],[34,0,34,3],[34,4,34,5],[34,7,34,8],[35,0,35,3],[35,4,35,5],[35,7,35,8],[31,0,31,3],[31,7,31,8],[32,0,32,3],[32,4,32,5],[32,7,32,8],[33,0,33,3],[33,4,33,5],[33,7,33,8],[23,0,23,3],[23,4,23,5],[23,6,23,7],[23,8,23,9],[25,0,25,9],[26,0,28,9],[21,0,21,1],[21,2,21,3],[21,4,21,5],[21,6,21,7],[21,8,21,9],[22,0,22,3],[22,4,22,5],[22,6,22,7],[22,8,22,9],[19,0,19,1],[19,2,19,3],[19,4,19,5],[19,6,19,7],[19,8,19,9],[20,0,20,1],[20,2,20,3],[20,4,20,5],[20,6,20,7],[20,8,20,9],[17,0,17,1],[17,2,17,3],[17,4,17,5],[17,6,17,7],[17,8,17,9],[18,0,18,1],[18,2,18,3],[18,4,18,5],[18,6,18,7],[18,8,18,9],[15,0,15,1],[15,2,15,3],[15,4,15,5],[15,6,15,7],[15,8,15,9],[16,0,16,9],[13,0,13,1],[13,2,13,3],[13,4,13,5],[13,6,13,7],[13,8,13,9],[14,0,14,3],[14,4,14,5],[14,6,14,7],[14,8,14,9],[11,0,11,1],[11,2,11,3],[11,4,11,5],[11,6,11,7],[11,8,11,9],[12,0,12,1],[12,2,12,3],[12,4,12,5],[12,6,12,7],[12,8,12,9],[9,0,9,9],[10,0,10,1],[10,2,10,3],[10,4,10,5],[10,6,10,7],[10,8,10,9],[2,0,2,4],[2,6,2,8],[3,1,3,4],[5,3,5,4],[5,6,5,7],[8,0,8,1],[8,2,8,3],[8,4,8,5],[8,6,8,7],[8,8,8,9]]}
[{"$f":"+'Cover Page'!C39","v":2022}," Annual Reporting Performance Form 1"]
[]
[{"$f":"+'Cover Page'!B31","v":"Permit EPR/UP3131DF"},null,null,null,null,"Operator: ",{"$f":"+'Cover Page'!B37:I37","v":0}]
["Facility:",{"$f":"+'Cover Page'!B33:I33","v":"Boston Energy Production Facility"},null,null,null,"Form:","Performance 1"]
[]
["Reporting  Period from: ",null,null,"2022-01-01",null,"to:","2022-12-31"]
[]
[{"$f":"+A1","v":2022},"Annual Reporting of Waste Disposal and Recovery"]
["Waste Description",null,"Disposal Route(s)",null,"Disposal Tonnes",null,"Recovery Tonnes",null,"% / tonne of waste incinerated"]
["1) Hazardous Wastes"]
["APC Residues",null,null,null,1077,null,0,null,{"$f":"IF((E11+G11)>0,(E11+G11)/'Operational Data'!$G$18, \"-\")","v":4.9769268377891543E-2}]
["IBA",null,null,null,1189,null,0,null,{"$f":"IF((E12+G12)>0,(E12+G12)/'Operational Data'!$G$18, \"-\")","v":5.494490260103347E-2}]
[null,null,null,null,null,null,null,null,{"$f":"IF((E13+G13)>0,(E13+G13)/'Operational Data'!$G$18, \"-\")","v":"-"}]
[null,null,null,null,null,null,null,null,{"$f":"IF((E14+G14)>0,(E14+G14)/'Operational Data'!$G$18, \"-\")","v":"-"}]
["Total Hazardous Waste",null,null,null,{"$f":"SUM(E11:F14)","v":2266},null,{"$f":"SUM(G11:H14)","v":0},null,{"$f":"IF((E15+G15)>0,(E15+G15)/'Operational Data'!$G$18, \"-\")","v":0.10471417097892502}]
[]
["2) Non-Hazardous Wastes"]
["IBA",null,null,null,0,null,0,null,{"$f":"IF((E18+G18)>0,(E18+G18)/'Operational Data'!$G$18, \"-\")","v":"-"}]
["Ferrous Metal",null,null,null,0,null,88,null,{"$f":"IF((E19+G19)>0,(E19+G19)/'Operational Data'!$G$18, \"-\")","v":4.0665697467543692E-3}]
["Process Water",null,null,null,0,null,0,null,{"$f":"IF((E20+G20)>0,(E20+G20)/'Operational Data'!$G$18, \"-\")","v":"-"}]
[null,null,null,null,null,null,null,null,{"$f":"IF((E21+G21)>0,(E21+G21)/'Operational Data'!$G$18, \"-\")","v":"-"}]
[null,null,null,null,null,null,null,null,{"$f":"IF((E22+G22)>0,(E22+G22)/'Operational Data'!$G$18, \"-\")","v":"-"}]
["Total Non-Hazardous Waste",null,null,null,{"$f":"SUM(E18:F22)","v":0},null,{"$f":"SUM(G18:H22)","v":88},null,{"$f":"IF((E23+G23)>0,(E23+G23)/'Operational Data'!$G$18, \"-\")","v":4.0665697467543692E-3}]
["TOTAL WASTE",null,null,null,{"$f":"+E23+E15","v":2266},null,{"$f":"+G23+G15","v":88},null,{"$f":"IF((E24+G24)>0,(E24+G24)/'Operational Data'!$G$18, \"-\")","v":0.10878074072567939}]
[]
["Operator’s comments :"]
[]
[]
[]
[]
[{"$f":"+A1","v":2022},"Annual Reporting of Water and Other Raw Material Usage"]
["Raw Material",null,null,null,"Usage",null,"Unit","Specific Useage",null,"Unit"]
["Mains Water",null,null,null,{"$f":"+'Operational Data'!G36","v":33924},null,"m3",{"$f":"IF(E33>0,E33/'Operational Data'!$G$18,\"-\")","v":1.5676626373738094},null,"m3/te"]
["Total Water",null,null,null,{"$f":"+'Operational Data'!G37+'Operational Data'!G36","v":33924},null,"m3",{"$f":"IF(E34>0,E34/'Operational Data'!$G$18,\"-\")","v":1.5676626373738094},null,"m3/te"]
["Urea / Ammonia",null,null,null,{"$f":"+'Operational Data'!G39","v":30480},null,"kg",{"$f":"IF(E35>0,E35/'Operational Data'!$G$18,\"-\")","v":1.4085118850121954},null,"kg/te"]
["Activated Carbon",null,null,null,{"$f":"+'Operational Data'!G40","v":1445},null,"kg",{"$f":"IF(E36>0,E36/'Operational Data'!$G$18,\"-\")","v":6.6774923682500723E-2},null,"kg/te"]
["Lime / hydrated lime / Sodium Bicarb.",null,null,null,{"$f":"+'Operational Data'!G41","v":424000},null,"kg",{"$f":"IF(E37>0,E37/'Operational Data'!$G$18,\"-\")","v":19.593472416180145},null,"kg/te"]
[]
["Operator’s comments :"]
[]
[]
[]
[{"$f":"+A31","v":2022},"Annual Reporting of other performance indicators "]
["Parameter",null,"Results by Line"]
[null,null,"A1",null,null,null,null,null,"Turbine 1"]
["Operating hours for the year, hours",null,2091,null,null,null,null,null,2091]
["Number of periods of abnormal operation, qty.",null,0,null,null,null,null,null,0]
["Cumulative hours of abnormal operation for this year, hours",null,0,null,null,null,null,null,0]
[]
["Operator’s comments :"]
[]
[]
[]
["Signed: ",null,null,null,null,null,"Date:"]

{"sheet":"Energy Form 1","index":6,"n_rows":29,"n_cols":7,"rows_kept":29,"cut":false,"hidden":false,"merged":[[15,0,15,2],[15,3,15,4],[15,6,15,8],[17,0,17,8],[18,0,24,8],[13,0,13,2],[13,3,13,4],[13,6,13,8],[14,0,14,2],[14,3,14,4],[14,6,14,8],[11,0,11,2],[11,3,11,4],[11,6,11,8],[12,0,12,2],[12,3,12,4],[12,6,12,8],[9,0,9,2],[9,3,9,4],[9,6,9,8],[10,0,10,2],[10,3,10,4],[10,6,10,8],[2,6,2,8],[4,1,4,4],[6,3,6,4],[6,6,6,7],[8,0,8,2],[8,3,8,4],[8,6,8,8]]}
[{"$f":"+'Cover Page'!C39","v":2022}," Annual Reporting of Energy Usage/Export"]
[]
[{"$f":"+'Cover Page'!B31","v":"Permit EPR/UP3131DF"},null,null,null,null,"Operator: ",{"$f":"+'Cover Page'!B37:I37","v":0}]
[]
["Facility:",{"$f":"+'Cover Page'!B33:I33","v":"Boston Energy Production Facility"},null,null,null,"Form:","Energy 1"]
[]
["Reporting  Period from: ",null,null,{"$f":"+'Perf. Form 1'!D6:E6","v":"2022-01-01"},null,"to:",{"$f":"+'Perf. Form 1'!G6:H6","v":"2022-12-31"}]
[]
["Energy Source",null,null,"Energy Usage",null,"Unit","Specific Useage (KWh/tonne incinerated"]
["Electricity Produced",null,null,{"$f":"+'Operational Data'!G21","v":19627},null,"MWh",{"$f":"+'Operational Data'!H21","v":906.98368658577283}]
["Electricity Imported   ",null,null,{"$f":"+'Operational Data'!G24","v":2357},null,"MWh",{"$f":"+'Operational Data'!H24","v":108.91937378522783}]
["Electricity Exported",null,null,{"$f":"+'Operational Data'!G22","v":14129},null,"MWh",{"$f":"+'Operational Data'!H22","v":652.91549945332372}]
["Gas Oil",null,null,null,null,"tonnes"]
["Steam/hot water exported",null,null,{"$f":"+'Operational Data'!G27","v":0},null,"GWh",{"$f":"+'Operational Data'!H27","v":"-"}]
[]
[]
[]
["Operator’s comments :"]
[]
[]
[]
[]
[]
[]
[]
[]
[]
[]
["Signed: ",null,null,null,null,null,"Date:"]

{"sheet":"Permit Compliance","index":7,"n_rows":33,"n_cols":12,"rows_kept":33,"cut":false,"hidden":false,"merged":[[25,0,25,10],[18,0,18,10],[30,1,30,3],[30,4,30,6],[30,7,30,9],[26,1,26,3],[26,4,26,6],[26,7,26,9],[27,1,27,3],[27,4,27,6],[27,7,27,9],[23,1,23,3],[23,4,23,6],[23,7,23,9],[21,1,21,3],[21,4,21,6],[31,1,31,3],[31,4,31,6],[31,7,31,9],[28,1,28,3],[28,4,28,6],[28,7,28,9],[29,1,29,3],[29,4,29,6],[29,7,29,9],[21,7,21,9],[22,1,22,3],[22,4,22,6],[22,7,22,9],[19,1,19,3],[19,4,19,6],[19,7,19,9],[20,1,20,3],[20,4,20,6],[20,7,20,9],[16,2,16,4],[16,5,16,8],[15,2,15,4],[15,5,15,8],[16,0,16,1],[13,5,13,8],[14,0,14,1],[14,2,14,4],[14,5,14,8],[15,0,15,1],[7,0,7,1],[7,2,7,8],[8,0,8,1],[8,2,8,4],[8,5,8,8],[8,11,17,14],[32,4,32,8],[9,0,9,1],[9,2,9,4],[9,5,9,8],[10,0,10,1],[10,2,10,4],[10,5,10,8],[11,0,11,1],[11,2,11,4],[11,5,11,8],[12,0,12,1],[12,2,12,4],[12,5,12,8],[13,0,13,1],[13,2,13,4]]}
[{"$f":"+'Cover Page'!$B$29","v":"Annual Performance Report 2022"},null,null,null,{"$f":"+'Cover Page'!$B$33","v":"Boston Energy Production Facility"}]
[]
["Summary of Permit Compliance"]
[]
["Compliance with permit limits for continuously monitored pollutants"]
[]
["The plant met its emission limits as shown in the table below:"]
["Substance",null,"Percentage time compliant during operation",null,null,null,null,null,null,null,null,"Notes:"]
[null,null,"Half-hourly limit",null,null,"Daily limit",null,null,null,null,null,"Report to 2 decimal places, i.e. xx.xx%\n\nPlease provide a brief summary of each notification or non-compliance in the table (rather than just referring to notifications that were sent to the Regulator).  \n\n"]
["Particulates",null,1,null,null,1]
["Oxides of nitrogen",null,1,null,null,1]
["Sulphur dioxide",null,1,null,null,1]
["Carbon monoxide",null,0.99,null,null,1]
["Total organic carbon",null,1,null,null,1]
["Hydrogen chloride",null,0.9909,null,null,0.99]
["Hydrogen fluoride",null,1,null,null,1]
[]
[]
["Summary of any notifications or non-compliances under the permit"]
["Date","Summary of notification or non-compliance [including Line/Reference]",null,null,"Reason ",null,null,"Measures taken to prevent reoccurrence"]
["2022-07-10","HCL 1/2 hrly ELV breached (66.35 mg/m3). Process stopped and blockage cleared.",null,null,"Blockage of lime feed pipe",null,null,"New feed hose sourced and fitted"]
["2022-07-14","HCL 1/2 hrly ELV (62.45 mg/m3) and daily average ELV breached (14.8mg/m3)",null,null,"Increase in flow during commissioning activities",null,null,"Increase dosing flow rate and tune plant during commissioning"]
["2022-09-21","CO 1/2 hrly ELV breached (175.42 mg/m3)",null,null,"Solid fuel plug lost due to level control issues caused ingress of air ",null,null,"Additional level switched and faster rection time of low level protection swtiches"]
["2022-09-21","CO 1/2 hrly ELV breached (154 mg/m3)",null,null,"Fuel feed screw sensor defective",null,null,"Sensor taken out of service"]
[]
["Summary of any complaints received and actions to taken to resolve them."]
["Date","Summary of complaint [including Line/Reference]",null,null,"Reason *",null,null,"Measures taken to prevent reoccurrence"]
[null,"N/A"]
[]
[]
[]
[]
[null,null,null,null,"* including whether substantiated by the operator or the EA"]

{"sheet":"Improvements","index":8,"n_rows":39,"n_cols":5,"rows_kept":39,"cut":false,"hidden":false,"merged":[[37,0,37,9],[38,0,47,9],[4,0,4,9],[5,0,13,9],[15,0,15,9],[16,0,24,9],[26,0,26,9],[27,0,35,9]]}
[{"$f":"+'Cover Page'!$B$29","v":"Annual Performance Report 2022"},null,null,null,{"$f":"+'Cover Page'!$B$33","v":"Boston Energy Production Facility"}]
[]
["Summary of Plant Improvements"]
[]
["Summary of any efficiency improvements that have been completed within the year."]
["Please see below."]
[]
[]
[]
[]
[]
[]
[]
[]
[]
["Summary of any permit improvement conditions that have been completed within the year and the resulting environmental benefits."]
["N/A - permit improvement conditions relate to post commissioning and will be undertaken in 2023"]
[]
[]
[]
[]
[]
[]
[]
[]
[]
["Summary of any changes to the plant or operating techniques which required a variation to the permit and a summary of the resulting environmental impact."]
["The plant switched fuel during 2022 from wood to RDF which required a permit variation which was completed in 2020."]
[]
[]
[]
[]
[]
[]
[]
[]
[]
["Summary of any other improvements made to the plant or planned to be made and a summary of the resulting environmental benefits."]
["Several improvements have been made in the control room during 2022 including newly installed large monitor screens which improve visibility of data to everyone in the control room and the improvement of visibility of Air 1/2 hrly ELVs including a traffic light system to warn of nearing ELVs.\n\nMoving conveyors and dust management have been improved due to the change to RDF as feedstock.\n\nA new OFGR fan has been installed to cool the gasifier.\n\nRelocation of a fire detection system was undertaken as it was being triggered by direct sunlight during the hot weather. "]

{"sheet":"Public Liasion","index":9,"n_rows":29,"n_cols":5,"rows_kept":29,"cut":false,"hidden":false,"merged":[[23,0,24,1],[23,2,24,9],[25,0,26,1],[25,2,26,9],[28,0,28,9],[17,0,18,1],[17,2,18,9],[19,0,20,1],[19,2,20,9],[21,0,22,1],[21,2,22,9],[16,0,16,1],[16,2,16,9],[5,0,5,1],[5,2,5,9],[6,0,7,1],[6,2,7,9],[8,0,9,1],[8,2,9,9],[10,0,11,1],[10,2,11,9],[12,0,13,1],[12,2,13,9],[15,0,15,9]]}
[{"$f":"+'Cover Page'!$B$29","v":"Annual Performance Report 2022"},null,null,null,{"$f":"+'Cover Page'!$B$33","v":"Boston Energy Production Facility"}]
[]
["Details of Public & Stakeholder Liasion"]
[]
["Summary of events held during the reporting year."]
["Date",null,"Description"]
["N/A"]
[]
[]
[]
[]
[]
[]
[]
[]
["List of events planned for next year"]
["Date",null,"Description"]
[2023,null,"None yet planned"]
[]
[]
[]
[]
[]
[]
[]
[]
[]
[]
["If you wish to be involved in the public liasion programme, please contact _________________"]

{"sheet":"Residue Quality ","index":10,"n_rows":35,"n_cols":6,"rows_kept":35,"cut":false,"hidden":false,"merged":[[35,0,40,6],[32,3,32,4],[34,0,34,6],[27,0,28,1],[29,0,29,1],[30,0,30,1],[31,0,31,1],[32,0,32,1],[29,3,29,4],[30,3,30,4],[29,5,29,6],[30,5,30,6],[31,5,31,6],[32,5,32,6],[20,0,21,1],[20,2,21,6],[22,0,23,1],[22,2,23,6],[31,3,31,4],[27,2,28,2],[28,3,28,4],[28,5,28,6],[27,3,27,6],[26,0,26,6],[5,0,6,6],[7,0,8,6],[9,0,10,6],[14,0,15,1],[14,2,15,6],[16,0,17,1],[16,2,17,6],[18,0,19,1],[18,2,19,6],[12,0,12,6],[13,0,13,1],[13,2,13,6]]}
[{"$f":"+'Cover Page'!$B$29","v":"Annual Performance Report 2022"},null,null,null,{"$f":"+'Cover Page'!$B$33","v":"Boston Energy Production Facility"}]
[]
["Residue Quality Monitoring Requirements"]
[]
["Summary of monitoring undertaken and compliance"]
["Monthly IBA and APCr testing commenced in July following the change to RDF feedstock.  \nFull hazard testing undertaken by Socotec on IBA resulting in compliance as non-hazardous throughout 2022. "]
[]
[]
[]
[]
[]
[]
["Commentary on any specific events"]
["Date & Event",null,"Description"]
[]
[]
[]
[]
[]
[]
[]
[]
[]
[]
[]
[]
["Residue Quality Monitoring Results"]
["Parameter (unit) ",null,"Limit","Normal Operation "]
[null,null,null,"Bottom ash  ",null,"APC Residues"]
["Loss on Ignition (average %)",null,"<5%","<0.2"]
["Total Organic Carbon (average %)",null,"<3%",0.44]
["No. of Assessments Undertaken",null,"---",11,null,5]
["No. of Hazardous Results",null,"---",0]
[]
["Comments :"]

{"sheet":"Water","index":11,"n_rows":23,"n_cols":10,"rows_kept":23,"cut":false,"hidden":false,"merged":[[29,0,29,2],[29,3,29,5],[26,0,26,2],[26,3,26,5],[27,0,27,2],[27,3,27,5],[28,0,28,2],[28,3,28,5],[23,0,23,2],[23,3,23,5],[24,0,24,2],[24,3,24,5],[25,0,25,2],[25,3,25,5],[21,0,21,9],[22,0,22,2],[22,3,22,5],[14,0,15,1],[14,2,15,9],[16,0,17,1],[16,2,17,9],[18,0,19,1],[18,2,19,9],[5,0,6,9],[7,0,8,9],[9,0,10,9],[12,0,12,9],[13,0,13,1],[13,2,13,9]]}
[{"$f":"+'Cover Page'!$B$29","v":"Annual Performance Report 2022"},null,null,null,{"$f":"+'Cover Page'!$B$33","v":"Boston Energy Production Facility"}]
[]
["Emissions to Water"]
[]
["Summary of monitoring undertaken and compliance"]
["N/A"]
[]
[]
[]
[]
[]
[]
["Commentary on any specific events"]
["Date & Event",null,"Description"]
[]
[]
[]
[]
[]
[]
[]
["Emissions to Water / Sewer"]
["Parameter",null,null,"Monitoring Frequency",null,null,"Limit","Target","Max.","Average"]

{"sheet":"Air (periodic)","index":12,"n_rows":39,"n_cols":13,"rows_kept":39,"cut":false,"hidden":false,"merged":[[18,3,18,4],[27,3,27,4],[33,3,33,4],[19,3,19,4],[20,3,20,4],[21,3,21,4],[22,3,22,4],[23,3,23,4],[24,3,24,4],[31,3,31,4],[25,3,25,4],[26,3,26,4],[28,3,28,4],[13,3,13,4],[14,3,14,4],[15,3,15,4],[16,3,16,4],[17,3,17,4],[38,0,38,9],[19,0,19,1],[20,0,20,1],[21,0,21,1],[34,3,34,4],[35,3,35,4],[33,0,33,1],[34,0,34,1],[35,0,35,1],[36,0,36,1],[24,0,24,1],[32,3,32,4],[39,0,40,9],[25,0,25,1],[26,0,26,1],[22,0,22,1],[23,0,23,1],[37,0,37,1],[27,0,27,1],[28,0,28,1],[29,0,29,1],[30,0,30,1],[31,0,31,1],[32,0,32,1],[37,3,37,4],[29,3,29,4],[30,3,30,4],[36,3,36,4],[16,0,16,1],[17,0,17,1],[18,0,18,1],[13,0,13,1],[14,0,14,1],[15,0,15,1],[12,0,12,1],[11,3,11,4],[12,3,12,4],[9,0,10,1],[9,5,9,9],[9,3,10,4],[9,2,10,2],[5,12,8,15],[9,12,11,15],[8,0,8,9],[5,0,6,9],[11,0,11,1]]}
[{"$f":"+'Cover Page'!$B$29","v":"Annual Performance Report 2022"},null,null,null,{"$f":"+'Cover Page'!$B$33","v":"Boston Energy Production Facility"}]
[]
["Emissions to Air (periodically monitored)"]
[]
["Summary of monitoring undertaken, standards used and compliance",null,null,null,null,null,null,null,null,null,null,null,"Notes:"]
["QAL 2 Testing was undertaken following completion of commissioning in December 2022.  Operator has been advised that the plant was compliant and is awaiting full report from testing company. ",null,null,null,null,null,null,null,null,null,null,null,"Template may require adjustment for any bespoke monitoring requirements of permit. "]
[]
[]
["Results of emissions to air that are periodically monitored"]
["Substance",null,"Ref. Period","Emission Limit Value",null,"Average",null,null,null,null,null,null,"User to add additional tables as necessary, depending on whether quarterly or bi-annual reporting is required for the compliance year"]
[null,null,null,null,null,"A1"]
["Hydrogen fluoride",null,"1 hr","2 mg/m3"]
["Cd and Th and their compounds",null,"6-8hrs","0.05 mg/m3"]
["Hg and its compounds",null,"6-8hrs","0.05 mg/m3"]
["Sb, As, Pb, Cr, Co, Cu, Mn, Ni, V and their compounds",null,"6-8hrs","0.5 mg/m3"]
["Dioxins & Furans (I-TEQ)",null,"6-8hrs","0.1 ng/m3"]
["PCBs (WHO-TEQ Humans / Mammals)",null,"6-8hrs","None set ng/m3"]
["PCBs (WHO-TEQ Fish)",null,"6-8hrs","None set ng/m3"]
["PCBs (WHO-TEQ Birds)",null,"6-8hrs","None set ng/m3"]
["Dioxins & Furans (WHO-TEQ Humans / Mammals)",null,"6-8hrs","None set ng/m3"]
["Dioxins & Furans (WHO-TEQ Fish)",null,"6-8hrs","None set ng/m3"]
["Dioxins & Furans (WHO-TEQ Birds)",null,"6-8hrs","None set ng/m3"]
["Anthanthrene",null,"6-8hrs","None set µg/m3"]
["Benzo(a)anthracene",null,"6-8hrs","None set µg/m3"]
["Benzo(a)pyrene",null,"6-8hrs","None set µg/m3"]
["Benzo(b)fluoranthene",null,"6-8hrs","None set µg/m3"]
["Benzo(b)naptho(2,1-d) thiophene",null,"6-8hrs","None set µg/m3"]
["Benzo(c)phenanthrene",null,"6-8hrs","None set µg/m3"]
["Benzo(ghi)perylene",null,"6-8hrs","None set µg/m3"]
["Benzo(k)fluoranthene",null,"6-8hrs","None set µg/m3"]
["Cholanthrene",null,"6-8hrs","None set µg/m3"]
["Chrysene",null,"6-8hrs","None set µg/m3"]
["Cyclopenta(cd)pyrene",null,"6-8hrs","None set µg/m3"]
["Dibenzo(ai)pyrene",null,"6-8hrs","None set µg/m3"]
["Dibenzo(ah)anthracene",null,"6-8hrs","None set µg/m3"]
["Fluoranthene",null,"6-8hrs","None set µg/m3"]
["Indeno(123-cd) pyrene",null,"6-8hrs","None set µg/m3"]
["Naphthalene",null,"6-8hrs","None set µg/m3"]
["Comments :"]

{"sheet":"Air (CEMS)","index":13,"n_rows":28,"n_cols":16,"rows_kept":28,"cut":false,"hidden":false,"merged":[[26,0,26,12],[28,0,29,12],[13,0,14,0],[5,0,6,12],[7,0,8,12],[10,0,10,12],[11,0,12,0],[11,2,12,2],[11,1,12,1],[11,3,11,4],[11,5,11,6],[11,7,11,8],[11,9,11,10],[11,11,11,12]]}
[{"$f":"+'Cover Page'!$B$29","v":"Annual Performance Report 2022"},null,null,null,null,null,null,null,{"$f":"+'Cover Page'!$B$33","v":"Boston Energy Production Facility"}]
[]
["Emissions to Air (continously monitored)"]
[null,null,null,null,null,null,null,null,null,null,null,null,null,null,null,"Notes:"]
["Summary of monitoring undertaken, standards used and compliance",null,null,null,null,null,null,null,null,null,null,null,null,null,null,"Template may require adjustment for any bespoke monitoring requirements of permit"]
["CEMS monitoring has been undertaken in line with the permit. ",null,null,null,null,null,null,null,null,null,null,null,null,null,null,"Report to 2 decimal places, i.e. xx.xx%"]
[]
[]
[]
[]
["Results of emissions to air that are continuously monitored (maximum and average values for each line)"]
["Substance","Reference Period","Emission Limit Value","A1"]
[null,null,null,"Max.","Avg."]
["Oxides of nitrogen","Daily mean","200 mg/m3 ",{"$f":"NOx!O19","v":169},{"$f":"NOx!N19","v":75.512500000000003}]
[null,"½ hourly mean","400 mg/m3 ",{"$f":"NOx!M19","v":246},{"$f":"NOx!L19","v":75.666666666666671}]
["Particulates","Daily mean","10 mg/m3",{"$f":"Particulates!O19","v":1},{"$f":"Particulates!N19","v":0.16666666666666666}]
[null,"½ hourly mean","30 mg/m3 ",{"$f":"Particulates!M19","v":5},{"$f":"Particulates!L19","v":0.16666666666666666}]
["Total Organic Carbon ","Daily mean","10 mg/m3 ",{"$f":"TOC!O19","v":2},{"$f":"TOC!N19","v":0}]
[null,"½ hourly mean","20 mg/m3 ",{"$f":"TOC!M19","v":21},{"$f":"TOC!L19","v":0}]
["Hydrogen chloride ","Daily mean","10 mg/m3 ",{"$f":"HCl!O19","v":15},{"$f":"HCl!N19","v":3.8016666666666672}]
[null,"½ hourly mean","60 mg/m3 ",{"$f":"HCl!M19","v":66},{"$f":"HCl!L19","v":3.75}]
["Sulphur dioxide","Daily mean","50 mg/m3 ",{"$f":"'SO2'!O19","v":34},{"$f":"'SO2'!N19","v":6.060833333333334}]
[null,"½ hourly mean","200 mg/m3 ",{"$f":"'SO2'!M19","v":152},{"$f":"'SO2'!L19","v":6.083333333333333}]
["Carbon monoxide ","Daily mean","50 mg/m3 ",{"$f":"'CO 0.5hourly'!O19","v":23},{"$f":"'CO 0.5hourly'!N19","v":4.03}]
[null,"½ hourly mean *","100 mg/m3 *",{"$f":"'CO 0.5hourly'!M19","v":175},{"$f":"'CO 0.5hourly'!L19","v":4}]
[" Ammonia","Daily mean","No limit set",{"$f":"'NH3'!O19","v":5},{"$f":"'NH3'!N19","v":0.3725}]
["* = delete or amend as appropriate"]
["Comments :"]

{"sheet":"HCl","index":14,"n_rows":48,"n_cols":17,"rows_kept":48,"cut":false,"hidden":false,"merged":[[12,16,15,18],[51,9,63,9],[66,9,78,9],[4,9,4,14],[4,1,4,3],[4,4,4,6],[48,0,51,6],[47,0,47,6],[6,9,18,9],[21,9,33,9],[36,9,48,9],[3,16,7,18],[9,16,11,18]]}
[{"$f":"+'Cover Page'!$B$29","v":"Annual Performance Report 2022"},null,null,null,{"$f":"+'Cover Page'!$B$33","v":"Boston Energy Production Facility"}]
[]
["Monitoring of Hydrogen Chloride emissions",null,null,"Whole Installation",null,null,"See  Notes in Cell Q3",null,null,{"$f":"+A3","v":"Monitoring of Hydrogen Chloride emissions"},null,null,null,"Per Combustion Line",null,null,"Notes:"]
[null,null,null,null,null,null,null,null,null,null,null,null,null,null,null,null,"User to add logic to complete Whole installation, Table A5:G18. From the data in Per Combustion Line, Table J6:O79, subject to No. of lines installed"]
["mg/Nm3","1/2 Hourly Reference Periods",null,null,"Daily Reference Periods"]
[{"$f":"+'Cover Page'!C39","v":2022},"1/2 hourly HCl ELV","Monthly 1/2 hourly mean","Highest 1/2 hourly maximum","Daily HCl ELV","Monthly daily mean","Highest daily maximum",null,null,{"$f":"+A6","v":2022},"mg/Nm3","Monthly 1/2 hourly mean","Monthly 1/2 hourly maximum","Monthly daily mean","Monthly daily maximum"]
["Jan",60,{"$f":"L7","v":1},{"$f":"M7","v":5},10,{"$f":"N7","v":0.64},{"$f":"O7","v":2},null,null,"A1","Jan",1,5,0.64,2]
["Feb",60,{"$f":"L8","v":5},{"$f":"M8","v":23},10,{"$f":"N8","v":5.04},{"$f":"O8","v":10},null,null,null,"Feb",5,23,5.04,10]
["Mar",60,3,12,10,2.95,8,null,null,null,"Mar",3,12,2.95,8,null,"Whole Installation table A5:G18:"]
["Apr",60,0,0,10,0,0,null,null,null,"Apr",0,0,0,0,null,"Mean: for 1/2 hourly and daily periods calculate mean of values across all operational combustion lines for the month"]
["May",60,0,0,10,0,0,null,null,null,"May",0,0,0,0]
["Jun",60,0,0,10,0,0,null,null,null,"Jun",0,0,0,0]
["Jul",60,6,66,10,5.84,15,null,null,null,"Jul",6,66,5.84,15,null,"Maximum: for 1/2 hourly and daily periods use the highest value across all operational combustion lines for the month"]
["Aug",60,6,42,10,6.23,10,null,null,null,"Aug",6,42,6.23,10]
["Sep",60,5,22,10,5,7,null,null,null,"Sep",5,22,5,7]
["Oct",60,5,43,10,5.15,10,null,null,null,"Oct",5,43,5.15,10]
["Nov",60,6,18,10,6.35,7,null,null,null,"Nov",6,18,6.35,7]
["Dec",60,8,21,10,8.42,10,null,null,null,"Dec",8,21,8.42,10]
[null,null,null,null,null,null,null,null,null,null,"Annual",{"$f":"AVERAGE(L7:L18)","v":3.75},{"$f":"MAX(M7:M18)","v":66},{"$f":"AVERAGE(N7:N18)","v":3.8016666666666672},{"$f":"MAX(O7:O18)","v":15}]
[]
[]
[]
[]
[]
[]
[]
[]
[]
[]
[]
[]
[]
[]
[]
[]
[]
[]
[]
[]
[]
[]
[]
[]
[]
[]
[]
[]
["Comments :"]

{"sheet":"SO2","index":15,"n_rows":48,"n_cols":17,"rows_kept":48,"cut":false,"hidden":false,"merged":[[3,16,7,18],[9,16,11,18],[12,16,15,18],[66,9,78,9],[4,1,4,3],[4,4,4,6],[4,9,4,14],[6,9,18,9],[21,9,33,9],[36,9,48,9],[47,0,47,6],[48,0,51,6],[51,9,63,9]]}
[{"$f":"+'Cover Page'!$B$29","v":"Annual Performance Report 2022"},null,null,null,{"$f":"+'Cover Page'!$B$33","v":"Boston Energy Production Facility"}]
[]
["Monitoring of Sulphur dioxide emissions",null,null,"Whole Installation",null,null,"See  Notes in Cell Q3",null,null,{"$f":"+A3","v":"Monitoring of Sulphur dioxide emissions"},null,null,null,"Per Combustion Line",null,null,"Notes:"]
[null,null,null,null,null,null,null,null,null,null,null,null,null,null,null,null,"User to add logic to complete Whole installation, Table A5:G18. From the data in Per Combustion Line, Table J6:O79, subject to No. of lines installed"]
["mg/Nm3","1/2 Hourly Reference Periods",null,null,"Daily Reference Periods"]
[{"$f":"+'Cover Page'!C39","v":2022},"1/2 hourly SO2 ELV","Monthly 1/2 hourly mean","Highest 1/2 hourly maximum","Daily SO2 ELV","Monthly daily mean","Highest daily maximum",null,null,{"$f":"+A6","v":2022},"mg/Nm3","Monthly 1/2 hourly mean","Monthly 1/2 hourly maximum","Monthly daily mean","Monthly daily maximum"]
["Jan",200,{"$f":"L7","v":8},{"$f":"M7","v":16},50,{"$f":"N7","v":7.71},{"$f":"O7","v":10},null,null,"A1","Jan",8,16,7.71,10]
["Feb",200,{"$f":"L8","v":10},{"$f":"M8","v":27},50,{"$f":"N8","v":10.039999999999999},{"$f":"O8","v":14},null,null,null,"Feb",10,27,10.039999999999999,14]
["Mar",200,7,9,50,7.5,8,null,null,null,"Mar",7,9,7.5,8,null,"Whole Installation table A5:G18:"]
["Apr",200,0,0,50,0,0,null,null,null,"Apr",0,0,0,0,null,"Mean: for 1/2 hourly and daily periods calculate mean of values across all operational combustion lines for the month"]
["May",200,0,0,50,0,0,null,null,null,"May",0,0,0,0]
["Jun",200,0,0,50,0,0,null,null,null,"Jun",0,0,0,0]
["Jul",200,16,152,50,15.46,34,null,null,null,"Jul",16,152,15.46,34,null,"Maximum: for 1/2 hourly and daily periods use the highest value across all operational combustion lines for the month"]
["Aug",200,8,36,50,7.76,12,null,null,null,"Aug",8,36,7.76,12]
["Sep",200,6,13,50,6.23,7,null,null,null,"Sep",6,13,6.23,7]
["Oct",200,6,8,50,5.92,7,null,null,null,"Oct",6,8,5.92,7]
["Nov",200,6,25,50,6.11,10,null,null,null,"Nov",6,25,6.11,10]
["Dec",200,6,14,50,6,8,null,null,null,"Dec",6,14,6,8]
[null,null,null,null,null,null,null,null,null,null,"Annual",{"$f":"AVERAGE(L7:L18)","v":6.083333333333333},{"$f":"MAX(M7:M18)","v":152},{"$f":"AVERAGE(N7:N18)","v":6.060833333333334},{"$f":"MAX(O7:O18)","v":34}]
[]
[]
[]
[]
[]
[]
[]
[]
[]
[]
[]
[]
[]
[]
[]
[]
[]
[]
[]
[]
[]
[]
[]
[]
[]
[]
[]
[]
["Comments :"]

{"sheet":"NOx","index":16,"n_rows":48,"n_cols":17,"rows_kept":48,"cut":false,"hidden":false,"merged":[[3,16,7,18],[9,16,11,18],[12,16,15,18],[66,9,78,9],[4,1,4,3],[4,4,4,6],[4,9,4,14],[6,9,18,9],[21,9,33,9],[36,9,48,9],[47,0,47,6],[48,0,51,6],[51,9,63,9]]}
[{"$f":"+'Cover Page'!$B$29","v":"Annual Performance Report 2022"},null,null,null,{"$f":"+'Cover Page'!$B$33","v":"Boston Energy Production Facility"}]
[]
["Monitoring of Oxides of Nitrogen emissions",null,null,"Whole Installation",null,null,"See  Notes in Cell Q3",null,null,{"$f":"+A3","v":"Monitoring of Oxides of Nitrogen emissions"},null,null,null,"Per Combustion Line",null,null,"Notes:"]
[null,null,null,null,null,null,null,null,null,null,null,null,null,null,null,null,"User to add logic to complete Whole installation, Table A5:G18. From the data in Per Combustion Line, Table J6:O79, subject to No. of lines installed"]
["mg/Nm3","1/2 Hourly Reference Periods",null,null,"Daily Reference Periods"]
[{"$f":"+'Cover Page'!C39","v":2022},"1/2 hourly NOx ELV","Monthly 1/2 hourly mean","Highest 1/2 hourly maximum","Daily NOx ELV","Monthly daily mean","Highest daily maximum",null,null,{"$f":"+A6","v":2022},"mg/Nm3","Monthly 1/2 hourly mean","Monthly 1/2 hourly maximum","Monthly daily mean","Monthly daily maximum"]
["Jan",400,{"$f":"L7","v":67},{"$f":"M7","v":94},200,{"$f":"N7","v":66.5},{"$f":"O7","v":80},null,null,"A1","Jan",67,94,66.5,80]
["Feb",400,{"$f":"L8","v":73},{"$f":"M8","v":90},200,{"$f":"N8","v":72.72},{"$f":"O8","v":83},null,null,null,"Feb",73,90,72.72,83]
["Mar",400,63,86,200,63.18,74,null,null,null,"Mar",63,86,63.18,74,null,"Whole Installation table A5:G18:"]
["Apr",400,0,0,200,0,0,null,null,null,"Apr",0,0,0,0,null,"Mean: for 1/2 hourly and daily periods calculate mean of values across all operational combustion lines for the month"]
["May",400,0,0,200,0,0,null,null,null,"May",0,0,0,0]
["Jun",400,0,0,200,0,0,null,null,null,"Jun",0,0,0,0]
["Jul",400,145,246,200,144.53,169,null,null,null,"Jul",145,246,144.53,169,null,"Maximum: for 1/2 hourly and daily periods use the highest value across all operational combustion lines for the month"]
["Aug",400,86,162,200,86.23,114,null,null,null,"Aug",86,162,86.23,114]
["Sep",400,96,169,200,95.58,154,null,null,null,"Sep",96,169,95.58,154]
["Oct",400,117,182,200,116.61,138,null,null,null,"Oct",117,182,116.61,138]
["Nov",400,127,200,200,127.23,145,null,null,null,"Nov",127,200,127.23,145]
["Dec",400,134,193,200,133.57,169,null,null,null,"Dec",134,193,133.57,169]
[null,null,null,null,null,null,null,null,null,null,"Annual",{"$f":"AVERAGE(L7:L18)","v":75.666666666666671},{"$f":"MAX(M7:M18)","v":246},{"$f":"AVERAGE(N7:N18)","v":75.512500000000003},{"$f":"MAX(O7:O18)","v":169}]
[]
[]
[]
[]
[]
[]
[]
[]
[]
[]
[]
[]
[]
[]
[]
[]
[]
[]
[]
[]
[]
[]
[]
[]
[]
[]
[]
[]
["Comments :"]

{"sheet":"TOC","index":17,"n_rows":48,"n_cols":17,"rows_kept":48,"cut":false,"hidden":false,"merged":[[3,16,7,18],[9,16,11,18],[12,16,15,18],[66,9,78,9],[4,1,4,3],[4,4,4,6],[4,9,4,14],[6,9,18,9],[21,9,33,9],[36,9,48,9],[47,0,47,6],[48,0,51,6],[51,9,63,9]]}
[{"$f":"+'Cover Page'!$B$29","v":"Annual Performance Report 2022"},null,null,null,{"$f":"+'Cover Page'!$B$33","v":"Boston Energy Production Facility"}]
[]
["Monitoring of Total organic carbon emissions",null,null,"Whole Installation",null,null,"See  Notes in Cell Q3",null,null,{"$f":"+A3","v":"Monitoring of Total organic carbon emissions"},null,null,null,"Per Combustion Line",null,null,"Notes:"]
[null,null,null,null,null,null,null,null,null,null,null,null,null,null,null,null,"User to add logic to complete Whole installation, Table A5:G18. From the data in Per Combustion Line, Table J6:O79, subject to No. of lines installed"]
["mg/Nm3","1/2 Hourly Reference Periods",null,null,"Daily Reference Periods"]
[{"$f":"+'Cover Page'!C39","v":2022},"1/2 hourly TOC ELV","Monthly 1/2 hourly mean","Highest 1/2 hourly maximum","Daily TOC ELV","Monthly daily mean","Highest daily maximum",null,null,{"$f":"+A6","v":2022},"mg/Nm3","Monthly 1/2 hourly mean","Monthly 1/2 hourly maximum","Monthly daily mean","Monthly daily maximum"]
["Jan",20,{"$f":"L7","v":0},{"$f":"M7","v":1},10,{"$f":"N7","v":0},{"$f":"O7","v":0},null,null,"A1","Jan",0,1,0,0]
["Feb",20,{"$f":"L8","v":0},{"$f":"M8","v":0},10,{"$f":"N8","v":0},{"$f":"O8","v":0},null,null,null,"Feb",0,0,0,0]
["Mar",20,0,0,10,0,0,null,null,null,"Mar",0,0,0,0,null,"Whole Installation table A5:G18:"]
["Apr",20,0,0,10,0,0,null,null,null,"Apr",0,0,0,0,null,"Mean: for 1/2 hourly and daily periods calculate mean of values across all operational combustion lines for the month"]
["May",20,0,0,10,0,0,null,null,null,"May",0,0,0,0]
["Jun",20,0,0,10,0,0,null,null,null,"Jun",0,0,0,0]
["Jul",20,0,3,10,0,2,null,null,null,"Jul",0,3,0,2,null,"Maximum: for 1/2 hourly and daily periods use the highest value across all operational combustion lines for the month"]
["Aug",20,0,3,10,0,1,null,null,null,"Aug",0,3,0,1]
["Sep",20,0,21,10,0,1,null,null,null,"Sep",0,21,0,1]
["Oct",20,0,7,10,0,1,null,null,null,"Oct",0,7,0,1]
["Nov",20,0,3,10,0,1,null,null,null,"Nov",0,3,0,1]
["Dec",20,0,1,10,0,1,null,null,null,"Dec",0,1,0,1]
[null,null,null,null,null,null,null,null,null,null,"Annual",{"$f":"AVERAGE(L7:L18)","v":0},{"$f":"MAX(M7:M18)","v":21},{"$f":"AVERAGE(N7:N18)","v":0},{"$f":"MAX(O7:O18)","v":2}]
[]
[]
[]
[]
[]
[]
[]
[]
[]
[]
[]
[]
[]
[]
[]
[]
[]
[]
[]
[]
[]
[]
[]
[]
[]
[]
[]
[]
["Comments :"]

{"sheet":"Particulates","index":18,"n_rows":48,"n_cols":17,"rows_kept":48,"cut":false,"hidden":false,"merged":[[3,16,7,18],[9,16,11,18],[12,16,15,18],[66,9,78,9],[4,1,4,3],[4,4,4,6],[4,9,4,14],[6,9,18,9],[21,9,33,9],[36,9,48,9],[47,0,47,6],[48,0,51,6],[51,9,63,9]]}
[{"$f":"+'Cover Page'!$B$29","v":"Annual Performance Report 2022"},null,null,null,{"$f":"+'Cover Page'!$B$33","v":"Boston Energy Production Facility"}]
[]
["Monitoring of Particulate matter emissions",null,null,"Whole Installation",null,null,"See  Notes in Cell Q3",null,null,{"$f":"+A3","v":"Monitoring of Particulate matter emissions"},null,null,null,"Per Combustion Line",null,null,"Notes:"]
[null,null,null,null,null,null,null,null,null,null,null,null,null,null,null,null,"User to add logic to complete Whole installation, Table A5:G18. From the data in Per Combustion Line, Table J6:O79, subject to No. of lines installed"]
["mg/Nm3","1/2 Hourly Reference Periods",null,null,"Daily Reference Periods"]
[{"$f":"+'Cover Page'!C39","v":2022},"1/2 hourly PM ELV","Monthly 1/2 hourly mean","Highest 1/2 hourly maximum","Daily PM ELV","Monthly daily mean","Highest daily maximum",null,null,{"$f":"+A6","v":2022},"mg/Nm3","Monthly 1/2 hourly mean","Monthly 1/2 hourly maximum","Monthly daily mean","Monthly daily maximum"]
["Jan",30,{"$f":"L7","v":0},{"$f":"M7","v":2},10,{"$f":"N7","v":0},{"$f":"O7","v":1},null,null,"A1","Jan",0,2,0,1]
["Feb",30,{"$f":"L8","v":0},{"$f":"M8","v":1},10,{"$f":"N8","v":0},{"$f":"O8","v":1},null,null,null,"Feb",0,1,0,1]
["Mar",30,0,4,10,0,1,null,null,null,"Mar",0,4,0,1,null,"Whole Installation table A5:G18:"]
["Apr",30,0,0,10,0,0,null,null,null,"Apr",0,0,0,0,null,"Mean: for 1/2 hourly and daily periods calculate mean of values across all operational combustion lines for the month"]
["May",30,0,0,10,0,0,null,null,null,"May",0,0,0,0]
["Jun",30,0,0,10,0,0,null,null,null,"Jun",0,0,0,0]
["Jul",30,0,2,10,0,0,null,null,null,"Jul",0,2,0,0,null,"Maximum: for 1/2 hourly and daily periods use the highest value across all operational combustion lines for the month"]
["Aug",30,0,2,10,0,1,null,null,null,"Aug",0,2,0,1]
["Sep",30,0,2,10,0,1,null,null,null,"Sep",0,2,0,1]
["Oct",30,1,1,10,1,1,null,null,null,"Oct",1,1,1,1]
["Nov",30,0,5,10,0,1,null,null,null,"Nov",0,5,0,1]
["Dec",30,1,2,10,1,1,null,null,null,"Dec",1,2,1,1]
[null,null,null,null,null,null,null,null,null,null,"Annual",{"$f":"AVERAGE(L7:L18)","v":0.16666666666666666},{"$f":"MAX(M7:M18)","v":5},{"$f":"AVERAGE(N7:N18)","v":0.16666666666666666},{"$f":"MAX(O7:O18)","v":1}]
[]
[]
[]
[]
[]
[]
[]
[]
[]
[]
[]
[]
[]
[]
[]
[]
[]
[]
[]
[]
[]
[]
[]
[]
[]
[]
[]
[]
["Comments :"]

{"sheet":"CO 0.5hourly","index":19,"n_rows":48,"n_cols":17,"rows_kept":48,"cut":false,"hidden":false,"merged":[[3,16,7,18],[9,16,11,18],[12,16,15,18],[66,9,78,9],[4,1,4,3],[4,4,4,6],[4,9,4,14],[6,9,18,9],[21,9,33,9],[36,9,48,9],[47,0,47,6],[48,0,51,6],[51,9,63,9]]}
[{"$f":"+'Cover Page'!$B$29","v":"Annual Performance Report 2022"},null,null,null,{"$f":"+'Cover Page'!$B$33","v":"Boston Energy Production Facility"}]
[]
["Monitoring of Carbon Monoxide (half hourly)",null,null,"Whole Installation",null,null,"See  Notes in Cell Q3",null,null,{"$f":"+A3","v":"Monitoring of Carbon Monoxide (half hourly)"},null,null,null,"Per Combustion Line",null,null,"Notes:"]
[null,null,null,null,null,null,null,null,null,null,null,null,null,null,null,null,"User to add logic to complete Whole installation, Table A5:G18. From the data in Per Combustion Line, Table J6:O79, subject to No. of lines installed"]
["mg/Nm3","1/2 Hourly Reference Periods",null,null,"Daily Reference Periods"]
[{"$f":"+'Cover Page'!C39","v":2022},"1/2 hourly CO ELV","Monthly 1/2 hourly mean","Highest 1/2 hourly maximum","Daily CO ELV","Monthly daily mean","Highest daily maximum",null,null,{"$f":"+A6","v":2022},"mg/Nm3","Monthly 1/2 hourly mean","Monthly 1/2 hourly maximum","Monthly daily mean","Monthly daily maximum"]
["Jan",100,{"$f":"L7","v":3},{"$f":"M7","v":14},50,{"$f":"N7","v":3.5},{"$f":"O7","v":5},null,null,"A1","Jan",3,14,3.5,5]
["Feb",{"$f":"+B7","v":100},{"$f":"L8","v":4},{"$f":"M8","v":9},{"$f":"+E7","v":50},{"$f":"N8","v":4.3600000000000003},{"$f":"O8","v":6},null,null,null,"Feb",4,9,4.3600000000000003,6]
["Mar",{"$f":"+B8","v":100},4,10,{"$f":"+E8","v":50},3.95,5,null,null,null,"Mar",4,10,3.95,5,null,"Whole Installation table A5:G18:"]
["Apr",100,0,0,50,0,0,null,null,null,"Apr",0,0,0,0,null,"Mean: for 1/2 hourly and daily periods calculate mean of values across all operational combustion lines for the month"]
["May",100,0,0,50,0,0,null,null,null,"May",0,0,0,0]
["Jun",100,0,0,50,0,0,null,null,null,"Jun",0,0,0,0]
["Jul",100,5,63,50,4.53,9,null,null,null,"Jul",5,63,4.53,9,null,"Maximum: for 1/2 hourly and daily periods use the highest value across all operational combustion lines for the month"]
["Aug",100,10,123,50,9.76,23,null,null,null,"Aug",10,123,9.76,23]
["Sep",100,8,175,50,7.76,23,null,null,null,"Sep",8,175,7.76,23]
["Oct",100,6,169,50,6.38,16,null,null,null,"Oct",6,169,6.38,16]
["Nov",100,5,72,50,4.7,10,null,null,null,"Nov",5,72,4.7,10]
["Dec",100,3,24,50,3.42,5,null,null,null,"Dec",3,24,3.42,5]
[null,null,null,null,null,null,null,null,null,null,"Annual",{"$f":"AVERAGE(L7:L18)","v":4},{"$f":"MAX(M7:M18)","v":175},{"$f":"AVERAGE(N7:N18)","v":4.03},{"$f":"MAX(O7:O18)","v":23}]
[]
[]
[]
[]
[]
[]
[]
[]
[]
[]
[]
[]
[]
[]
[]
[]
[]
[]
[]
[]
[]
[]
[]
[]
[]
[]
[]
[]
["Comments :"]

{"sheet":"NH3","index":20,"n_rows":49,"n_cols":17,"rows_kept":49,"cut":false,"hidden":false,"merged":[[3,16,7,18],[9,16,11,18],[12,16,15,18],[66,9,78,9],[4,1,4,3],[4,4,4,6],[4,9,4,14],[6,9,18,9],[21,9,33,9],[36,9,48,9],[47,0,47,6],[48,0,51,6],[51,9,63,9]]}
[{"$f":"+'Cover Page'!$B$29","v":"Annual Performance Report 2022"},null,null,null,{"$f":"+'Cover Page'!$B$33","v":"Boston Energy Production Facility"}]
[]
["Monitoring of Ammnonia emissions ",null,null,"Whole Installation",null,null,"See  Notes in Cell Q3",null,null,{"$f":"+A3","v":"Monitoring of Ammnonia emissions "},null,null,null,"Per Combustion Line",null,null,"Notes:"]
[null,null,null,null,null,null,null,null,null,null,null,null,null,null,null,null,"User to add logic to complete Whole installation, Table A5:G18. From the data in Per Combustion Line, Table J6:O79, subject to No. of lines installed"]
["mg/Nm3","1/2 Hourly Reference Periods",null,null,"Daily Reference Periods"]
[{"$f":"+'Cover Page'!C39","v":2022},"1/2 hourly NH3 ELV","Monthly 1/2 hourly mean","Highest 1/2 hourly maximum","Daily NH3 ELV","Monthly daily mean","Highest daily maximum",null,null,{"$f":"+A6","v":2022},"mg/Nm3","Monthly 1/2 hourly mean","Monthly 1/2 hourly maximum","Monthly daily mean","Monthly daily maximum"]
["Jan",0,{"$f":"L7","v":0},{"$f":"M7","v":0},10,{"$f":"N7","v":0},{"$f":"O7","v":0},null,null,"A1","Jan",0,0,0,0]
["Feb",{"$f":"+B7","v":0},{"$f":"L8","v":0},{"$f":"M8","v":1},{"$f":"+E7","v":10},{"$f":"N8","v":0},{"$f":"O8","v":1},null,null,null,"Feb",0,1,0,1]
["Mar",{"$f":"+B8","v":0},0,0,{"$f":"+E8","v":10},0,0,null,null,null,"Mar",0,0,0,0,null,"Whole Installation table A5:G18:"]
["Apr",0,0,0,10,0,0,null,null,null,"Apr",0,0,0,0,null,"Mean: for 1/2 hourly and daily periods calculate mean of values across all operational combustion lines for the month"]
["May",0,0,0,10,0,0,null,null,null,"May",0,0,0,0]
["Jun",0,0,0,10,0,0,null,null,null,"Jun",0,0,0,0]
["Jul",0,0,1,10,0,0,null,null,null,"Jul",0,1,0,0,null,"Maximum: for 1/2 hourly and daily periods use the highest value across all operational combustion lines for the month"]
["Aug",0,2,11,10,2.0699999999999998,5,null,null,null,"Aug",2,11,2.0699999999999998,5]
["Sep",0,1,7,10,0.7,2,null,null,null,"Sep",1,7,0.7,2]
["Oct",0,0,2,10,0.23,2,null,null,null,"Oct",0,2,0.23,2]
["Nov",0,0,4,10,0.47,2,null,null,null,"Nov",0,4,0.47,2]
["Dec",0,1,16,10,1,4,null,null,null,"Dec",1,16,1,4]
[null,null,null,null,null,null,null,null,null,null,"Annual",{"$f":"AVERAGE(L7:L18)","v":0.33333333333333331},{"$f":"MAX(M7:M18)","v":16},{"$f":"AVERAGE(N7:N18)","v":0.3725},{"$f":"MAX(O7:O18)","v":5}]
[]
[]
[]
[]
[]
[]
[]
[]
[]
[]
[]
[]
[]
[]
[]
[]
[]
[]
[]
[]
[]
[]
[]
[]
[]
[]
[]
[]
["Comments :"]
["An indicated ELV value of zero in the table above means that no ammonia limit is set in the permit.  "]